lending/lending_fUSD_20250516
["ID","MTS","AMOUNT","RATE_DAILY","PERIOD"]
[361299932,1747435847795,-400.0,0.00016438,2]
[361299933,1747435847804,-400.0,0.00016438,2]
[361299934,1747435847814,-400.0,0.00016438,2]
[361299935,1747435847823,-400.0,0.00016438,2]
[361299936,1747435847833,-231.05029407,0.00016438,2]
[361299937,1747435847844,-634.28,0.00016438,2]
[361299938,1747435847853,-317.80976208,0.00016438,2]
[361299939,1747435847863,-400.0,0.00016438,2]
[361299940,1747435847872,-400.0,0.00016438,2]
[361299941,1747435847881,-2957.91,0.00016438,2]
[361299942,1747435847890,-400.0,0.00016438,2]
[361299943,1747435847900,-2187.02,0.00016438,2]
[361299944,1747435847909,-400.0,0.00016438,2]
[361299945,1747435847919,-928.23,0.00016438,2]
[361299946,1747435847928,-400.0,0.00016438,2]
[361299947,1747435847938,-630.4,0.00016438,2]
[361299948,1747435847947,-1083.1,0.00016438,2]
[361299949,1747435847957,-806.36,0.00016438,2]
[361299950,1747435847968,-749.56,0.00016438,2]
[361299951,1747435847977,-1500.95,0.00016438,2]
[361299952,1747435847987,-430.49,0.00016438,2]
[361299953,1747435847997,-400.0,0.00016438,2]
[361299954,1747435848007,-227.58771826,0.00016438,2]
[361299955,1747435848017,-400.0,0.00016438,2]
[361299956,1747435848026,-485.83,0.00016438,2]
[361299957,1747435848036,-400.0,0.00016438,2]
[361299958,1747435848046,-926.91,0.00016438,2]
[361299959,1747435848056,-637.01,0.00016438,2]
[361299960,1747435848065,-400.0,0.00016438,2]
[361299961,1747435848075,-400.0,0.00016438,2]
[361299962,1747435848085,-1474.88,0.00016438,2]
[361299963,1747435848095,-5938.05,0.00016438,2]
[361299964,1747435848105,-400.0,0.00016438,2]
[361299965,1747435848115,-614.15,0.00016438,2]
[361299966,1747435848125,-518.2,0.00016438,2]
[361299967,1747435848135,-3306.63,0.00016438,2]
[361299968,1747435848145,-401.9,0.00016438,2]
[361299969,1747435848155,-400.0,0.00016438,2]
[361299970,1747435848166,-400.0,0.00016438,2]
[361299971,1747435848176,-400.0,0.00016438,2]
[361299972,1747435848187,-484.28,0.00016438,2]
[361299973,1747435848196,-1115.22,0.00016438,2]
[361299974,1747435848206,-400.0,0.00016438,2]
[361299975,1747435848216,-294.98781008,0.00016438,2]
[361299976,1747435848226,-2918.56,0.00016438,2]
[361299977,1747435848236,-844.11,0.00016438,2]
[361299978,1747435848246,-400.0,0.00016438,2]
[361299979,1747435848263,-1053.54,0.00016438,2]
[361299980,1747435848274,-400.0,0.00016438,2]
[361299981,1747435848468,-6336.79,0.00016438,2]
[361299982,1747435848482,-2840.26,0.00016438,2]
[361299983,1747435848492,-435.27,0.00016438,2]
[361299984,1747435848505,-796.18,0.00016438,2]
[361299985,1747435848515,-400.0,0.00016438,2]
[361299986,1747435848525,-400.0,0.00016438,2]
[361299987,1747435848534,-1759.95,0.00016438,2]
[361299988,1747435848544,-150.0,0.00016438,10]
[361299989,1747435848554,-868.05,0.00016438,2]
[361299990,1747435848564,-400.0,0.00016438,2]
[361299991,1747435848574,-400.0,0.00016438,2]
[361299992,1747435848584,-400.0,0.00016438,2]
[361299993,1747435848594,-400.0,0.00016438,2]
[361299994,1747435848603,-400.0,0.00016438,2]
[361299995,1747435848612,-532.21,0.00016438,2]
[361299996,1747435848622,-1308.86,0.00016438,2]
[361299997,1747435848631,-1951.98,0.00016438,2]
[361299998,1747435848641,-400.0,0.00016438,2]
[361299999,1747435848652,-400.0,0.00016438,2]
[361300000,1747435848661,-2244.15,0.00016438,2]
[361300001,1747435848670,-622.64,0.00016438,2]
[361300002,1747435848680,-13960.24,0.00016438,2]
[361300003,1747435848690,-400.0,0.00016438,2]
[361300004,1747435848699,-720.06,0.00016438,2]
[361300005,1747435848709,-1107.99,0.00016438,2]
[361300006,1747435848719,-1083.27,0.00016438,2]
[361300007,1747435848729,-400.0,0.00016438,2]
[361300008,1747435848739,-400.0,0.00016438,2]
[361300009,1747435848748,-500.0,0.00016438,2]
[361300010,1747435848758,-400.0,0.00016438,2]
[361300011,1747435848767,-921.98,0.00016438,2]
[361300012,1747435848778,-400.0,0.00016438,2]
[361300013,1747435848787,-400.0,0.00016438,2]
[361300014,1747435848797,-400.0,0.00016438,2]
[361300015,1747435848807,-785.93,0.00016438,2]
[361300016,1747435848817,-400.0,0.00016438,2]
[361300017,1747435848827,-400.0,0.00016438,2]
[361300018,1747435848837,-824.05,0.00016438,2]
[361300019,1747435848847,-467.63,0.00016438,2]
[361300020,1747435848858,-400.0,0.00016438,2]
[361300021,1747435848868,-239.562893,0.00016438,2]
[361300022,1747435848879,-450.0,0.00016438,2]
[361300023,1747435848889,-400.0,0.00016438,2]
[361300024,1747435848898,-385.53289038,0.00016438,2]
[361300025,1747435848909,-2122.9,0.00016438,2]
[361300026,1747435848919,-1263.2,0.00016438,2]
[361300027,1747435848929,-400.0,0.00016438,2]
[361300028,1747435848939,-400.0,0.00016438,2]
[361300029,1747435848949,-400.0,0.00016438,2]
[361300030,1747435848959,-400.0,0.00016438,2]
[361300031,1747435848969,-1825.8,0.00016438,2]
[361300032,1747435848979,-400.0,0.00016438,2]
[361300033,1747435848990,-633.05,0.00016438,2]
[361300034,1747435849000,-5221.33,0.00016438,2]
[361300035,1747435849011,-450.0,0.00016438,2]
[361300036,1747435849021,-2348.66,0.00016438,2]
[361300037,1747435849031,-2009.48,0.00016438,2]
[361300038,1747435849041,-438.97,0.00016438,2]
[361300039,1747435849051,-7120.78,0.00016438,2]
[361300040,1747435849062,-400.0,0.00016438,2]
[361300041,1747435849072,-400.0,0.00016438,2]
[361300042,1747435849083,-454.47,0.00016438,2]
[361300043,1747435849092,-1086.99,0.00016438,2]
[361300044,1747435849102,-400.0,0.00016438,2]
[361300045,1747435849112,-400.0,0.00016438,2]
[361300046,1747435849122,-690.25,0.00016438,2]
[361300047,1747435849132,-400.0,0.00016438,2]
[361300048,1747435849142,-1040.7,0.00016438,2]
[361300049,1747435849152,-487.04,0.00016438,2]
[361300050,1747435849162,-952.49,0.00016438,2]
[361300051,1747435849173,-400.0,0.00016438,2]
[361300052,1747435849184,-853.26,0.00016438,2]
[361300053,1747435849194,-400.0,0.00016438,2]
[361300054,1747435849204,-400.0,0.00016438,2]
[361300055,1747435849214,-592.37,0.00016438,2]
[361300056,1747435849225,-754.53,0.00016438,2]
[361300057,1747435849235,-754.53,0.00016438,2]
[361300058,1747435849245,-1310.82,0.00016438,2]
[361300059,1747435849258,-754.53,0.00016438,2]
[361300060,1747435849268,-754.53,0.00016438,2]
[361300061,1747435849278,-472.81,0.00016438,2]
[361300062,1747435849288,-400.0,0.00016438,2]
[361300063,1747435849299,-400.0,0.00016438,2]
[361300064,1747435849310,-6590.5,0.00016438,2]
[361300065,1747435849320,-584.05,0.00016438,2]
[361300066,1747435849330,-159.679638,0.00016438,2]
[361300067,1747435849340,-400.0,0.00016438,2]
[361300068,1747435849350,-735.11,0.00016438,2]
[361300069,1747435849360,-400.0,0.00016438,2]
[361300070,1747435849370,-400.0,0.00016438,2]
[361300071,1747435849379,-505.77845193,0.00016438,2]
[361300072,1747435849389,-889.83,0.00016438,2]
[361300073,1747435849399,-400.0,0.00016438,2]
[361300074,1747435849409,-978.32,0.00016438,2]
[361300075,1747435849420,-400.0,0.00016438,2]
[361300076,1747435849430,-1255.63,0.00016438,2]
[361300077,1747435849439,-599.48,0.00016438,2]
[361300078,1747435849449,-135168.29,0.00016438,2]
[361300079,1747435849459,-400.0,0.00016438,2]
[361300080,1747435849470,-400.0,0.00016438,2]
[361300081,1747435849480,-452.74,0.00016438,2]
[361300082,1747435849492,-400.0,0.00016438,2]
[361300083,1747435849504,-400.0,0.00016438,2]
[361300084,1747435849515,-14430.41,0.00016438,2]
[361300085,1747435849524,-400.0,0.00016438,2]
[361300086,1747435849533,-169.869871,0.00016438,2]
[361300087,1747435849543,-400.0,0.00016438,2]
[361300088,1747435849552,-169.869871,0.00016438,2]
[361300089,1747435849562,-401.62588453,0.00016438,2]
[361300090,1747435849571,-400.0,0.00016438,2]
[361300091,1747435849581,-169.869871,0.00016438,2]
[361300092,1747435849590,-169.869871,0.00016438,2]
[361300093,1747435849599,-400.0,0.00016438,2]
[361300094,1747435849608,-11837.25,0.00016438,2]
[361300095,1747435849619,-400.0,0.00016438,2]
[361300096,1747435849628,-471.95669584,0.00016438,2]
[361300097,1747435849637,-7774.37,0.00016438,2]
[361300098,1747435849646,-400.0,0.00016438,2]
[361300099,1747435849657,-400.0,0.00016438,2]
[361300100,1747435849666,-231.31513343,0.00016438,2]
[361300101,1747435849676,-400.0,0.00016438,2]
[361300102,1747435849685,-400.0,0.00016438,2]
[361300103,1747435849695,-1007.69,0.00016438,2]
[361300104,1747435849705,-576.97,0.00016438,2]
[361300105,1747435849716,-400.0,0.00016438,2]
[361300106,1747435849726,-901.21,0.00016438,2]
[361300107,1747435849737,-400.0,0.00016438,2]
[361300108,1747435849750,-5228.77,0.00016438,2]
[361300109,1747435849760,-403.00669421,0.00016438,2]
[361300110,1747435849770,-400.0,0.00016438,2]
[361300111,1747435849780,-400.0,0.00016438,2]
[361300112,1747435849790,-500.0,0.00016438,2]
[361300113,1747435849800,-500.0,0.00016438,2]
[361300114,1747435849810,-852.32,0.00016438,2]
[361300115,1747435849820,-400.0,0.00016438,2]
[361300116,1747435849830,-400.0,0.00016438,2]
[361300117,1747435849840,-500.0,0.00016438,2]
[361300118,1747435849850,-400.0,0.00016438,2]
[361300119,1747435849860,-1657.13,0.00016438,2]
[361300120,1747435849870,-2549.29,0.00016438,2]
[361300121,1747435849880,-400.0,0.00016438,2]
[361300122,1747435849890,-400.0,0.00016438,2]
[361300123,1747435849900,-660.94,0.00016438,2]
[361300124,1747435849910,-626.35,0.00016438,2]
[361300125,1747435849920,-400.0,0.00016438,2]
[361300126,1747435849930,-11200.02,0.00016438,2]
[361300127,1747435849940,-400.0,0.00016438,2]
[361300128,1747435849949,-1585.48,0.00016438,2]
[361300129,1747435849959,-400.0,0.00016438,2]
[361300130,1747435849968,-2606.69,0.00016438,2]
[361300131,1747435849978,-400.0,0.00016438,2]
[361300132,1747435849988,-783.28,0.00016438,2]
[361300133,1747435849999,-400.0,0.00016438,2]
[361300134,1747435850009,-620.68,0.00016438,2]
[361300135,1747435850019,-400.0,0.00016438,2]
[361300136,1747435850028,-1319.39,0.00016438,2]
[361300137,1747435850038,-2648.44,0.00016438,2]
[361300138,1747435850048,-1791.65,0.00016438,2]
[361300139,1747435850057,-400.0,0.00016438,2]
[361300140,1747435850067,-400.0,0.00016438,2]
[361300141,1747435850077,-17490.05,0.00016438,2]
[361300142,1747435850086,-400.0,0.00016438,2]
[361300143,1747435850096,-1447.18,0.00016438,2]
[361300144,1747435850106,-500.0,0.00016438,2]
[361300145,1747435850116,-1076.35,0.00016438,2]
[361300146,1747435850125,-1480.9,0.00016438,2]
[361300147,1747435850135,-400.0,0.00016438,2]
[361300148,1747435850144,-400.0,0.00016438,2]
[361300149,1747435850154,-646.14,0.00016438,2]
[361300150,1747435850163,-400.0,0.00016438,2]
[361300151,1747435850172,-483.77,0.00016438,2]
[361300152,1747435850182,-584.23,0.00016438,2]
[361300153,1747435850191,-1164.71,0.00016438,2]
[361300154,1747435850200,-400.0,0.00016438,2]
[361300155,1747435850210,-942.07,0.00016438,2]
[361300156,1747435850219,-171.11193594,0.00016438,2]
[361300157,1747435850229,-666.14,0.00016438,2]
[361300158,1747435850238,-400.0,0.00016438,2]
[361300159,1747435850250,-522.7,0.00016438,2]
[361300160,1747435850259,-663.82,0.00016438,2]
[361300161,1747435850269,-725.31,0.00016438,2]
[361300162,1747435850279,-400.0,0.00016438,2]
[361300163,1747435850288,-400.0,0.00016438,2]
[361300164,1747435850297,-137463.15,0.00016438,2]
[361300165,1747435850307,-400.0,0.00016438,2]
[361300166,1747435850316,-400.0,0.00016438,2]
[361300167,1747435850327,-400.0,0.00016438,2]
[361300168,1747435850337,-400.0,0.00016438,2]
[361300169,1747435850346,-400.0,0.00016438,2]
[361300170,1747435850355,-400.0,0.00016438,2]
[361300171,1747435850365,-499.66,0.00016438,2]
[361300172,1747435850374,-400.0,0.00016438,2]
[361300173,1747435850384,-400.0,0.00016438,2]
[361300174,1747435850393,-400.0,0.00016438,2]
[361300175,1747435850402,-400.0,0.00016438,2]
[361300176,1747435850414,-400.0,0.00016438,2]
[361300177,1747435850424,-400.0,0.00016438,2]
[361300178,1747435850434,-150.0,0.00016465,10]
[361300179,1747435850444,-500.0,0.00016473,2]
[361300180,1747435850453,-501.00387771,0.00016473,2]
[361300181,1747435850462,-500.0,0.00016473,2]
[361300182,1747435850472,-156.82287286,0.00016473,2]
[361300183,1747435850482,-486.99744215,0.00016473,2]
[361300184,1747435851751,-483.9,0.00016438,2]
[361300185,1747435851761,-330.62540544,0.00016438,2]
[361300186,1747435851773,-69.37459456,0.00016438,2]
[361300187,1747435851783,-429.12,0.00016438,2]
[361300188,1747435851793,-93.43040224,0.00016438,2]
[361300189,1747435851809,-306.56959776,0.00016438,2]
[361300190,1747435851819,-13.00255785,0.00016473,2]
[361300191,1747435851828,-22.01909454,0.00016473,2]
[361300192,1747435851842,-164.33832049,0.00016473,2]
[361300193,1747435851852,-167.59921855,0.00016473,2]
[361300194,1747435851863,-500.0,0.00016473,2]
[361300195,1747435851873,-500.0,0.00016473,2]
[361300196,1747435851882,-303.64921602,0.00016473,2]
[361300197,1747435851892,-182.69222995,0.00016473,2]
[361300198,1747435851902,-500.0,0.00016473,2]
[361300199,1747435851912,-161.86673031,0.00016473,2]
[361300200,1747435851922,-504.83383511,0.00016473,2]
[361300201,1747435851932,-500.0,0.00016473,2]
[361300202,1747435851942,-2107.72216511,0.0001649,2]
[361300203,1747435851952,-150.0,0.00016493,10]
[361300204,1747435851962,-150.0,0.00016498,2]
[361300205,1747435851972,-500.0,0.00016499,2]
[361300206,1747435851982,-206.51043936,0.00016499,2]
[361300207,1747435863199,734.0,0.00042506,31]
[361300208,1747435863557,734.0,0.00042506,31]
[361300209,1747435863874,737.0,0.00042506,31]
[361300210,1747435864227,734.0,0.00042506,31]
[361300211,1747435865363,1076.0,0.00042506,30]
[361300212,1747435868932,1076.0,0.00042506,30]
[361300213,1747435872678,1076.0,0.00042506,30]
[361300214,1747435924792,151.0,0.00042506,31]
[361300215,1747435924835,151.0,0.00042506,31]
[361300216,1747435925345,155.0,0.00042506,31]
[361300217,1747435925377,156.587,0.00042506,31]
[361300218,1747435925409,500.0,0.00042506,31]
[361300219,1747435925820,500.0,0.00042506,31]
[361300220,1747435925985,518.5,0.00042506,31]
[361300221,1747435926024,162.380719,0.00042506,31]
[361300222,1747435926092,155.0,0.00042506,31]
[361300223,1747435926442,518.5,0.00042506,31]
[361300224,1747435926643,168.3888056,0.00042506,31]
[361300225,1747435927146,537.6845,0.00042506,31]
[361300226,1747435927272,174.61919141,0.00042506,31]
[361300227,1747435927604,537.6845,0.00042506,31]
[361300228,1747435927955,151.0,0.00042506,31]
[361300229,1747435928322,557.5788265,0.00042506,31]
[361300230,1747435928363,557.5788265,0.00042506,31]
[361300231,1747435928427,181.08010149,0.00042506,31]
[361300232,1747435928953,151.0,0.00042506,31]
[361300233,1747435929084,578.20924308,0.00042506,31]
[361300234,1747435929117,578.20924308,0.00042506,31]
[361300235,1747435929575,599.60298507,0.00042506,31]
[361300236,1747435929605,187.78006525,0.00042506,31]
[361300237,1747435929636,599.60298507,0.00042506,31]
[361300238,1747435929832,200.0,0.00042506,30]
[361300239,1747435930204,194.72792766,0.00042506,31]
[361300240,1747435930265,621.78829552,0.00042506,31]
[361300241,1747435930351,621.78829552,0.00042506,31]
[361300242,1747435930835,201.93286099,0.00042506,31]
[361300243,1747435930930,644.79446246,0.00042506,31]
[361300244,1747435931055,644.79446246,0.00042506,31]
[361300245,1747435931488,209.40437684,0.00042506,31]
[361300246,1747435931565,668.65185757,0.00042506,31]
[361300247,1747435931692,668.65185757,0.00042506,31]
[361300248,1747435932638,668.65185757,0.00042506,31]
[361300249,1747435932698,693.3919763,0.00042506,31]
[361300250,1747435932784,217.15233878,0.00042506,31]
[361300251,1747435932950,719.04747942,0.00042506,31]
[361300252,1747435933310,225.18697532,0.00042506,31]
[361300253,1747435933585,745.65223616,0.00042506,31]
[361300254,1747435934197,773.2413689,0.00042506,31]
[361300255,1747435934543,233.51889341,0.00042506,31]
[361300256,1747435934786,801.85129955,0.00042506,31]
[361300257,1747435935197,242.15909246,0.00042506,31]
[361300258,1747435935593,200.0,0.00042506,31]
[361300259,1747435936077,251.11897888,0.00042506,31]
[361300260,1747435936200,207.4,0.00042506,31]
[361300261,1747435936736,260.4103811,0.00042506,31]
[361300262,1747435936837,215.0738,0.00042506,31]
[361300263,1747435937451,270.0455652,0.00042506,31]
[361300264,1747435938050,280.03725112,0.00042506,31]
[361300265,1747435938090,223.0315306,0.00042506,31]
[361300266,1747435938677,290.39862941,0.00042506,31]
[361300267,1747435938805,231.28369723,0.00042506,31]
[361300268,1747435939467,290.39862941,0.00042506,31]
[361300269,1747435939752,239.84119403,0.00042506,31]
[361300270,1747435940227,248.71531821,0.00042506,31]
[361300271,1747435940687,159.0,0.00042506,30]
[361300272,1747435940871,257.91778498,0.00042506,31]
[361300273,1747435941823,267.46074303,0.00042506,31]
[361300274,1747435942194,277.35679052,0.00042506,31]
[361300275,1747435942821,287.61899177,0.00042506,31]
[361300276,1747435943424,298.26089446,0.00042506,31]
[361300277,1747435944033,309.29654756,0.00042506,31]
[361300278,1747435944656,320.74051982,0.00042506,31]
[361300279,1747435945339,332.60791905,0.00042506,31]
[361300280,1747435945674,151.0,0.00042506,31]
[361300281,1747435945915,344.91441206,0.00042506,31]
[361300282,1747435946873,151.0,0.00042506,31]
[361300283,1747435946963,357.6762453,0.00042506,31]
[361300284,1747435947095,151.0,0.00042506,31]
[361300285,1747435947199,370.91026638,0.00042506,31]
[361300286,1747435947567,151.0,0.00042506,31]
[361300287,1747435947857,384.63394623,0.00042506,31]
[361300288,1747435948476,384.63394623,0.00042506,31]
[361300289,1747435961946,208.6,0.00042506,30]
[361300290,1747435962285,208.6,0.00042506,30]
[361300297,1747436048366,389.553669,7.945e-05,2]
[361300298,1747436113821,165.87352575,0.00026137,120]
[361300300,1747436144007,428.05904603,0.00042508,30]
[361300301,1747436153218,1000.0,0.00042508,30]
[361300303,1747436226513,200.0,0.00042508,31]
[361300304,1747436227138,207.4,0.00042508,31]
[361300305,1747436227765,215.0738,0.00042508,31]
[361300306,1747436228396,223.0315306,0.00042508,31]
[361300307,1747436229029,231.28369723,0.00042508,31]
[361300308,1747436229740,239.84119403,0.00042508,31]
[361300309,1747436230370,248.71531821,0.00042508,31]
[361300310,1747436230399,151.0,0.00042508,31]
[361300311,1747436230993,257.91778498,0.00042508,31]
[361300312,1747436231033,156.587,0.00042508,31]
[361300313,1747436231652,162.380719,0.00042508,31]
[361300314,1747436232102,267.46074303,0.00042508,31]
[361300315,1747436232312,168.3888056,0.00042508,31]
[361300316,1747436232782,277.35679052,0.00042508,31]
[361300317,1747436232926,174.61919141,0.00042508,31]
[361300318,1747436233586,181.08010149,0.00042508,31]
[361300319,1747436233993,287.61899177,0.00042508,31]
[361300320,1747436234215,187.78006525,0.00042508,31]
[361300321,1747436234729,298.26089446,0.00042508,31]
[361300322,1747436235415,309.29654756,0.00042508,31]
[361300323,1747436235511,194.72792766,0.00042508,31]
[361300324,1747436236571,201.93286099,0.00042508,31]
[361300325,1747436236636,320.74051982,0.00042508,31]
[361300326,1747436236873,209.40437684,0.00042508,31]
[361300327,1747436236912,332.60791905,0.00042508,31]
[361300328,1747436237958,217.15233878,0.00042508,31]
[361300329,1747436237993,344.91441206,0.00042508,31]
[361300330,1747436238520,357.6762453,0.00042508,31]
[361300331,1747436238559,225.18697532,0.00042508,31]
[361300332,1747436238802,370.91026638,0.00042508,31]
[361300333,1747436238871,233.51889341,0.00042508,31]
[361300334,1747436239349,384.63394623,0.00042508,31]
[361300335,1747436239430,242.15909246,0.00042508,31]
[361300336,1747436240004,384.63394623,0.00042508,31]
[361300337,1747436240058,251.11897888,0.00042508,31]
[361300338,1747436240715,260.4103811,0.00042508,31]
[361300339,1747436241554,2799.9,0.00042508,30]
[361300341,1747436325684,1999.99,0.00027397,120]
[361300343,1747436485078,177.44,0.00024658,30]
[361300344,1747436526856,200.0,0.00042512,31]
[361300345,1747436527525,207.4,0.00042512,31]
[361300346,1747436528161,215.0738,0.00042512,31]
[361300347,1747436528805,223.0315306,0.00042512,31]
[361300348,1747436529412,231.28369723,0.00042512,31]
[361300349,1747436530040,239.84119403,0.00042512,31]
[361300350,1747436530162,219.6954963,0.00042512,31]
[361300351,1747436530664,248.71531821,0.00042512,31]
[361300352,1747436532788,257.91778498,0.00042512,31]
[361300353,1747436533299,267.46074303,0.00042512,31]
[361300354,1747436533576,277.35679052,0.00042512,31]
[361300355,1747436533939,287.61899177,0.00042512,31]
[361300356,1747436534526,298.26089446,0.00042512,31]
[361300357,1747436535590,309.29654756,0.00042512,31]
[361300358,1747436536239,320.74051982,0.00042512,31]
[361300359,1747436536916,332.60791905,0.00042512,31]
[361300360,1747436537537,344.91441206,0.00042512,31]
[361300361,1747436538296,357.6762453,0.00042512,31]
[361300362,1747436538880,370.91026638,0.00042512,31]
[361300363,1747436539507,384.63394623,0.00042512,31]
[361300364,1747436540131,384.63394623,0.00042512,31]
[361300365,1747436547209,10000.0,0.00042512,30]
[361300366,1747436552854,10000.0,0.00042512,30]
[361300367,1747436560943,10000.0,0.00042512,30]
[361300368,1747436562702,208.6,0.00042512,30]
[361300369,1747436562915,10000.0,0.00042512,30]
[361300370,1747436564951,10000.0,0.00042512,30]
[361300374,1747436608080,10000.0,0.00042512,30]
[361300375,1747436631562,54037.29342404,0.00042512,30]
[361300376,1747436828248,200.0,0.00042521,31]
[361300377,1747436828886,207.4,0.00042521,31]
[361300378,1747436829979,215.0738,0.00042521,31]
[361300379,1747436830164,223.0315306,0.00042521,31]
[361300380,1747436830837,231.28369723,0.00042521,31]
[361300381,1747436831785,239.84119403,0.00042521,31]
[361300382,1747436832129,248.71531821,0.00042521,31]
[361300383,1747436832757,257.91778498,0.00042521,31]
[361300384,1747436833398,267.46074303,0.00042521,31]
[361300385,1747436834063,277.35679052,0.00042521,31]
[361300386,1747436834705,287.61899177,0.00042521,31]
[361300387,1747436835330,298.26089446,0.00042521,31]
[361300388,1747436836722,309.29654756,0.00042521,31]
[361300389,1747436837003,320.74051982,0.00042521,31]
[361300390,1747436837503,332.60791905,0.00042521,31]
[361300391,1747436838145,344.91441206,0.00042521,31]
[361300392,1747436838795,357.6762453,0.00042521,31]
[361300393,1747436839481,370.91026638,0.00042521,31]
[361300394,1747436840798,384.63394623,0.00042521,31]
[361300395,1747436841003,384.63394623,0.00042521,31]
[361300396,1747436845133,-194.37,0.00012253,2]
[361300397,1747436845167,-200.0,0.00012976,2]
[361300398,1747436845189,-200.0,0.00013479,2]
[361300399,1747436845210,-370.8,0.00013699,2]
[361300400,1747436845231,-524.08,0.00013733,2]
[361300401,1747436845252,-59.43070758,0.00015245,2]
[361300403,1747436894045,4000.0,0.00042521,30]
[361300404,1747436896456,4522.00498197,0.00042521,30]
[361300406,1747436946451,6000.0,0.00042521,30]
[361300407,1747436947667,-137.87929242,0.00015245,2]
[361300408,1747436947688,-200.0,0.00015263,2]
[361300409,1747436947709,-956.98965893,0.00015282,2]
[361300410,1747436952983,-150.0,0.00015248,7]
[361300411,1747436953004,-673.46,0.00015248,2]
[361300412,1747436953026,-43.01034107,0.00015282,2]
[361300413,1747436953047,-3450.93,0.00015359,2]
[361300414,1747436953071,-200.0,0.00015364,2]
[361300415,1747436953092,-1123.47,0.00015458,2]
[361300416,1747436953114,-250.0,0.00015479,2]
[361300417,1747436953136,-221.09,0.00015523,2]
[361300418,1747436953158,-512.53,0.00015625,2]
[361300419,1747436953180,-404.46,0.000157,2]
[361300420,1747436953201,-200.0,0.000158,5]
[361300421,1747436953223,-500.0,0.000159,5]
[361300422,1747436953245,-508.40501695,0.000159,2]
[361300423,1747436953266,-1032.17575104,0.00015938,2]
[361300424,1747436953288,-300.0,0.00015957,2]
[361300425,1747436953309,-165.8,0.00015958,2]
[361300426,1747436953331,-264.66889094,0.00015997,2]
[361300427,1747436955001,-259.41110906,0.00015997,2]
[361300428,1747436955026,-508.40501679,0.00016141,2]
[361300429,1747436955050,-575.6157526,0.000162,2]
[361300430,1747436955073,-1000.0,0.000163,2]
[361300431,1747436955095,-1200.0,0.00016336,2]
[361300432,1747436955116,-202.82029579,0.00016338,2]
[361300433,1747436955137,-6092.69088551,0.00016338,2]
[361300434,1747436955160,-161.05694025,0.00016338,2]
[361300435,1747436955668,-3028.22418336,0.00016338,2]
[361300436,1747436955690,-1649.7714,0.00016338,2]
[361300437,1747436955713,-508.40501679,0.00016383,2]
[361300438,1747436955735,-550.0,0.000164,2]
[361300439,1747436955758,-653.662195,0.00016416,2]
[361300440,1747436955780,-375.0,0.00016428,2]
[361300441,1747436955800,-3234.93720485,0.00016428,2]
[361300442,1747436956390,-9801.27498767,0.00016428,2]
[361300443,1747436956411,-198.72501233,0.00016429,2]
[361300444,1747436957378,-176.27498767,0.00016429,2]
[361300445,1747436957400,-375.0,0.0001643,2]
[361300446,1747436957423,-175.0,0.00016431,2]